bitfinex-derivatives/quotes_SOLF0:USTF0_20250311
["timestamp","ask_amount","ask_price","bid_price","bid_amount"]
[1741701286553,26.43320608,122.86,122.73,248.38]
[1741701286554,0.05161105,122.82,122.79,0.05364025]
[1741701287461,8.1442,122.81,122.79,0.05364025]
[1741701287659,0.05161105,122.82,122.79,0.05364025]
[1741701288462,26.48481713,122.82,122.79,0.05364025]
[1741701288664,26.43320608,122.8,122.69,217.43320608]
[1741701288865,57.36,122.81,122.65,217.43320608]
[1741701289066,8.1471,122.77,122.65,274.79320608]
[1741701289362,57.36,122.76,122.65,26.43320608]
[1741701289951,0.05318272,122.72,122.71,8.1507]
[1741701290261,57.36,122.76,122.67,26.43320608]
[1741701290457,0.06027211,122.73,122.72,8.15]
[1741701290654,26.43320608,122.82,122.71,26.43320608]
[1741701291158,57.36,122.83,122.71,26.43320608]
[1741701291362,57.36,122.83,122.73,26.43320608]
[1741701291557,57.36,122.83,122.73,83.79320608]
[1741701291764,0.05644086,122.79,122.77,0.06064562]
[1741701292164,11.07225588,122.86,122.78,8.1461]
[1741701292364,11.07225588,122.86,122.78,57.36]
[1741701292564,37.50546196,122.86,122.75,26.43320608]
[1741701292968,11.07225588,122.86,122.75,26.43320608]
[1741701293167,11.07225588,122.86,122.81,8.144]
[1741701293464,0.0622259,122.85,122.82,0.05877582]
[1741701293860,0.05950522,122.85,122.82,0.06126864]
[1741701294958,8.20110522,122.85,122.82,0.06126864]
[1741701295163,26.4927113,122.85,122.82,0.06126864]
[1741701295663,8.1427,122.83,122.75,8.1478]
[1741701295864,8.1427,122.83,122.73,191.0]
[1741701295865,83.75320608,122.83,122.73,191.0]
[1741701296762,0.05445069,122.79,122.77,0.0616961]
[1741701297764,0.05445069,122.79,122.78,8.1461]
[1741701298066,0.05445069,122.79,122.77,0.0616961]
[1741701298267,0.05445069,122.79,122.78,8.1461]
[1741701298467,0.05445069,122.79,122.77,0.0616961]
[1741701300362,8.1418,122.85,122.79,8.145]
[1741701300669,11.07225588,122.87,122.78,57.3]
[1741701300869,26.43320608,122.86,122.71,326.0]
[1741701301171,57.28,122.85,122.75,26.43320608]
[1741701301371,57.28,122.85,122.73,26.43320608]
[1741701301567,0.06104478,122.81,122.7,217.43320608]
[1741701301866,295.15320608,122.84,122.78,0.05914629]
[1741701302059,0.05641352,122.77,122.72,26.43320608]
[1741701302262,268.72,122.84,122.74,26.43320608]
[1741701302566,8.1445,122.81,122.74,26.43320608]
[1741701302869,0.05224067,122.8,122.78,0.05686678]
[1741701303073,8.1438,122.82,122.76,8.1471]
[1741701303270,0.05492224,122.8,122.78,0.05144218]
[1741701304366,0.05492224,122.8,122.79,8.1454]
[1741701305274,2.224e-05,122.8,122.79,10.5854]
[1741701305767,2.224e-05,122.8,122.79,8.1454]
[1741701306164,2.224e-05,122.8,122.79,10.5854]
[1741701306362,11.27298058,122.85,122.81,26.43320608]
[1741701306566,11.27298058,122.85,122.74,4.1154]
[1741701306869,11.27298058,122.85,122.79,26.43320608]
[1741701307576,8.1434,122.82,122.81,7.79e-05]
[1741701308074,0.05483648,122.83,122.81,7.79e-05]
[1741701308670,8.1434,122.82,122.81,7.79e-05]
[1741701308872,0.05483648,122.83,122.81,7.79e-05]
[1741701309175,8.1434,122.82,122.81,7.79e-05]
[1741701309365,0.05483648,122.83,122.81,7.79e-05]
[1741701311172,8.19813648,122.83,122.81,7.79e-05]
[1741701311373,0.05483648,122.83,122.81,7.79e-05]
[1741701311770,8.1434,122.82,122.81,7.79e-05]
[1741701312165,28.87320608,122.82,122.71,217.43320608]
[1741701312370,0.05483648,122.83,122.72,57.2]
[1741701312567,26.43320608,122.78,122.65,191.0]
[1741701312878,57.2,122.77,122.68,26.43320608]
[1741701313175,57.2,122.78,122.68,26.43320608]
[1741701313372,0.05265851,122.74,122.71,0.06123876]
[1741701313573,0.05265851,122.74,122.72,8.15]
[1741701314069,0.05265851,122.74,122.71,0.06123876]
[1741701314272,0.05265851,122.74,122.73,8.1494]
[1741701314575,0.05265851,122.74,122.71,0.06123876]
[1741701316875,57.18,122.73,122.65,191.0]
[1741701317075,57.18,122.73,122.63,26.43320608]
[1741701317279,57.18,122.73,122.64,26.43320608]
[1741701317469,57.18,122.73,122.63,8.1557]
[1741701317671,26.43320608,122.72,122.62,26.43320608]
[1741701317870,57.18,122.73,122.64,26.43320608]
[1741701318080,0.05149567,122.68,122.66,0.05306709]
[1741701318578,57.18,122.73,122.68,8.1523]
[1741701318778,0.05634963,122.68,122.66,26.48627317]
[1741701318976,57.18,122.73,122.69,8.1519]
[1741701319181,57.18,122.77,122.66,28.93374714]
[1741701319386,57.18,122.77,122.66,26.43320608]
[1741701319574,57.18,122.77,122.68,26.43320608]
[1741701319776,57.18,122.77,122.7,26.43320608]
[1741701320081,57.18,122.77,122.72,8.1495]
[1741701320281,57.18,122.77,122.7,26.43320608]
[1741701320576,295.09320608,122.81,122.73,0.05853659]
[1741701320577,0.0599264,122.76,122.73,0.05853659]
[1741701320883,0.0599264,122.76,122.7,83.61320608]
[1741701321083,0.0599264,122.76,122.73,0.05128977]
[1741701321778,57.18,122.81,122.73,0.05128977]
[1741701321973,33.29748966,122.82,122.73,0.05128977]
[1741701321974,33.29748966,122.82,122.76,26.43320608]
[1741701322678,33.29748966,122.82,122.8,26.43320608]
[1741701322885,32.10912179,122.83,122.81,57.16]
[1741701323088,32.10912179,122.83,122.82,26.43320608]
[1741701323386,32.16244136,122.83,122.76,252.5011]
[1741701323587,32.16244136,122.83,122.81,0.06145244]
[1741701323791,32.16244136,122.83,122.78,26.43320608]
[1741701323980,32.16244136,122.83,122.81,0.05764025]
[1741701324179,0.05331957,122.83,122.81,0.05764025]
[1741701325883,8.1392,122.89,122.81,0.05764025]
[1741701326176,8.1392,122.89,122.81,4.0102]
[1741701326383,8.1392,122.89,122.83,8.1425]
[1741701326978,8.1375,122.91,122.85,8.1412]
[1741701327481,61.1097,122.94,122.82,26.43320608]
[1741701327877,26.43320608,122.93,122.82,26.43320608]
[1741701328084,0.05776933,122.89,122.87,0.05831204]
[1741701329489,57.15776933,122.89,122.87,0.05831204]
[1741701329685,328.27776933,122.89,122.77,4.2945]
[1741701329987,26.43320608,122.87,122.77,4.2945]
[1741701330184,34.57360608,122.87,122.81,8.144]
[1741701330380,26.43320608,122.87,122.77,30.72770608]
[1741701330581,333.9192,122.89,122.77,30.72770608]
[1741701330890,268.68,122.89,122.81,0.05156258]
[1741701331089,26.43320608,122.9,122.81,0.05156258]
[1741701331389,26.43320608,122.87,122.78,4.2529]
[1741701331584,26.43320608,122.84,122.78,4.2529]
[1741701331788,83.51320608,122.84,122.72,57.08]
[1741701332288,0.06203534,122.79,122.77,0.06104451]
[1741701332487,83.51320608,122.78,122.65,145.77686606]
[1741701332791,26.43320608,122.75,122.66,12.3052]
[1741701333480,26.43320608,122.75,122.64,191.0]
[1741701333690,26.4857813,122.72,122.6,274.49320608]
[1741701333892,0.05257522,122.72,122.67,8.1533]
[1741701334193,57.06,122.73,122.63,26.43320608]
[1741701334392,57.06,122.73,122.6,191.0]
[1741701334593,57.06,122.73,122.6,248.06]
[1741701334794,57.06,122.73,122.61,26.43320608]
[1741701334988,0.05692967,122.68,122.65,0.05795946]
[1741701335189,0.05692967,122.68,122.61,83.49320608]
[1741701335394,57.06,122.73,122.65,0.05202684]
[1741701335589,57.06,122.73,122.64,26.43320608]
[1741701336287,26.43320608,122.76,122.64,217.43320608]
[1741701336795,0.05314838,122.71,122.69,0.0613885]
[1741701337195,0.05831426,122.71,122.69,0.0613885]
[1741701341809,0.05831426,122.71,122.61,57.04]
[1741701342097,26.43320608,122.71,122.6,8.2385]
[1741701342697,30.46540608,122.71,122.6,8.2385]
[1741701342892,30.46540608,122.71,122.59,12.1361]
[1741701343093,0.0587388,122.67,122.64,0.05170179]
[1741701343293,8.1547,122.65,122.64,0.05170179]
[1741701343595,0.0587388,122.67,122.64,0.05170179]
[1741701344095,57.04,122.66,122.53,57.04]
[1741701344297,57.04,122.66,122.57,26.43320608]
[1741701344495,57.04,122.66,122.55,26.43320608]
[1741701344691,295.31320608,122.65,122.53,12.542]
[1741701344891,8.1582,122.6,122.53,20.7043]
[1741701345293,0.05394095,122.58,122.55,0.05438332]
[1741701345494,8.21354095,122.58,122.55,0.05438332]
[1741701345692,0.05394095,122.58,122.53,8.2249]
[1741701345894,0.05394095,122.58,122.55,0.06034022]
[1741701347096,8.1556,122.64,122.57,34.59280608]
[1741701347397,57.04,122.67,122.55,26.43320608]
[1741701347997,268.98,122.7,122.6,26.43320608]
[1741701348197,57.04,122.74,122.63,26.43320608]
[1741701348495,0.05440009,122.7,122.65,26.43320608]
[1741701348699,0.05440009,122.7,122.67,0.05166538]
[1741701349694,8.1527,122.68,122.67,0.05166538]
[1741701350900,26.48760617,122.7,122.67,0.05166538]
[1741701351195,0.05440009,122.7,122.67,0.05166538]
[1741701352303,60.9928,122.78,122.67,26.48487146]
[1741701352501,8.1479,122.76,122.68,8.1683]
[1741701352797,4.3069,122.79,122.68,8.1683]
[1741701352993,8.1476,122.76,122.68,8.1683]
[1741701353198,61.3269,122.79,122.68,8.1683]
[1741701353401,61.3269,122.79,122.7,8.1513]
[1741701353601,0.05707686,122.75,122.72,0.05453059]
[1741701354202,8.20567686,122.75,122.72,0.05453059]
[1741701354402,0.05707686,122.75,122.72,0.05453059]
[1741701355505,26.49028294,122.75,122.72,0.05453059]
[1741701356008,0.05707686,122.75,122.72,0.05453059]
[1741701356504,56.98,122.74,122.72,0.05453059]
[1741701356807,56.98,122.74,122.65,4.3371]
[1741701357306,56.98,122.74,122.7,8.151]
[1741701357502,56.98,122.74,122.66,4.298]
[1741701357807,0.06051875,122.71,122.69,0.05257125]
[1741701358008,56.98,122.79,122.69,0.05257125]
[1741701358202,56.98,122.79,122.68,56.98]
[1741701358203,8.1472,122.77,122.68,56.98]
[1741701358501,83.41320608,122.79,122.68,56.98]
[1741701359104,56.98,122.79,122.68,83.41320608]
[1741701359312,0.05710557,122.75,122.72,0.05860412]
[1741701359509,56.96,122.8,122.72,4.1189]
[1741701359909,4.2297,122.83,122.72,4.1189]
[1741701360107,4.2297,122.83,122.73,4.0319]
[1741701360408,26.43320608,122.82,122.73,4.0319]
[1741701360610,0.05969761,122.79,122.77,0.05470396]
[1741701360810,56.94,122.78,122.77,3.96e-06]
[1741701361510,91.51930608,122.78,122.77,3.96e-06]
[1741701361908,95.89440608,122.78,122.77,3.96e-06]
[1741701362306,8.1503,122.72,122.67,4.0319]
[1741701362512,83.37320608,122.73,122.59,459.88]
[1741701362709,56.94,122.72,122.6,65.3555]
[1741701363112,56.94,122.72,122.63,26.43320608]
[1741701363307,8.1521,122.69,122.61,3.9945]
[1741701363615,26.43320608,122.7,122.66,0.05794499]
[1741701363811,8.1534,122.67,122.6,8.4155]
[1741701364013,0.05340506,122.66,122.61,8.1572]
[1741701364209,0.05340506,122.66,122.6,8.4155]
[1741701364413,0.05340506,122.66,122.56,56.92]
[1741701364810,83.35320608,122.67,122.56,56.92]
[1741701365010,56.92,122.67,122.56,56.92]
[1741701365206,0.05242343,122.62,122.6,0.05576815]
[1741701365415,65.0736,122.67,122.61,8.1569]
[1741701365617,0.05937581,122.62,122.61,8.1569]
[1741701365916,26.43320608,122.7,122.63,0.05596235]
[1741701366119,26.43320608,122.7,122.6,8.1578]
[1741701366306,26.43320608,122.7,122.58,26.43320608]
[1741701366918,0.05968241,122.65,122.63,0.05238726]
[1741701367113,26.43320608,122.7,122.63,0.05238726]
[1741701367318,0.05193994,122.65,122.63,0.05238726]
[1741701367613,0.06234179,122.65,122.63,0.05238726]
[1741701367818,268.94,122.64,122.52,191.0]
[1741701368019,26.43320608,122.62,122.49,34.65060608]
[1741701368218,56.9,122.61,122.49,91.55060608]
[1741701368519,56.9,122.61,122.52,26.43320608]
[1741701368926,0.05994716,122.58,122.55,0.05328974]
[1741701369821,0.05994716,122.58,122.56,8.1601]
[1741701370019,0.05994716,122.58,122.55,0.05328974]
[1741701370922,0.05994716,122.58,122.56,8.1602]
[1741701371122,0.05994716,122.58,122.55,0.05328974]
[1741701371433,0.05994716,122.58,122.56,8.1607]
[1741701371728,0.05994716,122.58,122.55,0.05328974]
[1741701373228,0.05994716,122.58,122.57,8.16]
[1741701373426,0.05994716,122.58,122.55,0.05328974]
[1741701373623,0.05994716,122.58,122.57,8.16]
[1741701373825,56.88,122.67,122.56,65.16]
[1741701374130,56.88,122.66,122.57,8.1599]
[1741701374331,83.31320608,122.66,122.57,8.1599]
[1741701374537,83.31320608,122.66,122.56,8.28]
[1741701374829,26.43320608,122.63,122.49,30.44080608]
[1741701375028,0.05346699,122.62,122.6,0.05569145]
[1741701375230,26.43320608,122.64,122.51,30.67910608]
[1741701375422,0.05231508,122.62,122.51,30.67910608]
[1741701375619,26.43320608,122.64,122.51,4.2459]
[1741701375925,8.4182,122.68,122.57,26.43320608]
[1741701376130,26.43320608,122.66,122.56,56.88]
[1741701376334,56.88,122.65,122.52,83.31320608]
[1741701376831,26.43320608,122.66,122.52,83.31320608]
[1741701376832,0.06158946,122.6,122.57,0.06103064]
[1741701377130,34.85140608,122.68,122.58,56.88]
[1741701377317,26.43320608,122.63,122.51,1.63251979]
[1741701377521,56.88,122.65,122.53,34.74160608]
[1741701377721,56.88,122.65,122.56,26.43320608]
[1741701377921,8.4182,122.68,122.56,26.43320608]
[1741701377922,8.4182,122.68,122.56,217.43320608]
[1741701378123,8.4182,122.68,122.48,26.43320608]
[1741701378124,26.43320608,122.61,122.48,26.43320608]
[1741701378322,8.1597,122.58,122.5,12.396]
[1741701378531,56.86,122.6,122.5,4.2317]
[1741701379025,26.43320608,122.61,122.5,30.66490608]
[1741701379530,0.05719643,122.57,122.54,0.05378803]
[1741701381131,83.29320608,122.64,122.56,8.1602]
[1741701381428,83.29320608,122.64,122.54,191.0]
[1741701381630,56.86,122.64,122.54,191.0]
[1741701381830,56.86,122.69,122.57,26.43320608]
[1741701382026,304.07650608,122.72,122.6,26.43320608]
[1741701382231,269.14,122.72,122.6,217.43320608]
[1741701382427,0.0591913,122.64,122.62,0.05897937]
[1741701382623,269.14,122.72,122.65,8.1545]
[1741701382929,0.05942566,122.64,122.62,0.05902573]
[1741701383130,295.57320608,122.72,122.6,83.29320608]
[1741701383334,8.1512,122.71,122.62,8.1565]
[1741701383526,295.57320608,122.72,122.6,274.29320608]
[1741701383724,269.14,122.72,122.6,274.29320608]
[1741701383931,11.24766992,122.73,122.63,26.43320608]
[1741701384325,0.05822097,122.69,122.67,0.0587854]
[1741701384732,8.1469,122.77,122.7,8.1513]
[1741701384933,68.08766992,122.8,122.69,26.43320608]
[1741701385431,68.08766992,122.8,122.7,56.84]
[1741701386038,0.05735656,122.76,122.74,0.06162824]
[1741701388127,295.53320608,122.82,122.74,0.06162824]
[1741701388536,295.53320608,122.82,122.71,30.82860608]
[1741701389335,0.05669192,122.78,122.75,0.06072898]
[1741701389639,0.05669192,122.78,122.75,4.3753]
[1741701389832,26.43320608,122.85,122.75,8.82009895]
[1741701390038,268.94,122.87,122.76,26.43320608]
[1741701390228,268.94,122.87,122.8,8.1446]
[1741701390436,268.94,122.87,122.76,26.43320608]
[1741701390838,268.94,122.87,122.8,8.1446]
[1741701391040,0.05494717,122.83,122.8,8.20200519]
[1741701391236,0.05494717,122.83,122.8,0.05740519]
[1741701391840,8.1367,122.93,122.82,26.43320608]
[1741701392040,93.88941079,122.96,122.83,4.0262]
[1741701392343,8.1392,122.89,122.83,4.0262]
[1741701392639,26.43320608,122.88,122.79,56.76]
[1741701392840,26.43320608,122.88,122.8,8.1441]
[1741701393033,0.05706525,122.87,122.85,0.06161909]
[1741701393542,26.43320608,122.86,122.7,191.0]
[1741701393730,26.43320608,122.83,122.72,30.45940608]
[1741701393935,26.43320608,122.83,122.78,8.146]
[1741701394238,26.43320608,122.83,122.72,30.45940608]
[1741701394832,0.05238516,122.79,122.76,0.05337009]
[1741701395342,56.74,122.85,122.76,0.05337009]
[1741701395543,56.74,122.85,122.82,8.143]
[1741701395841,56.74,122.85,122.76,56.72]
[1741701396046,83.17320608,122.85,122.76,56.72]
[1741701396339,0.2538,122.91,122.76,26.43320608]
[1741701396545,0.05851811,122.82,122.79,0.06148796]
[1741701396844,26.43320608,122.88,122.77,56.7]
[1741701397041,0.05779934,122.82,122.79,0.05282747]
[1741701397234,8.1421,122.84,122.74,3.985]
[1741701397434,56.7,122.85,122.74,3.985]
[1741701397640,0.05583666,122.82,122.79,0.05852665]
[1741701401245,0.05583666,122.82,122.8,8.1444]
[1741701401445,0.05583666,122.82,122.79,0.05852665]
[1741701401743,64.7984,122.9,122.85,8.1411]
[1741701401944,8.1384,122.9,122.8,4.0183]
[1741701402144,83.09320608,122.94,122.81,30.68100608]
[1741701402345,26.43320608,122.91,122.81,30.68100608]
[1741701402542,26.43320608,122.91,122.81,4.2478]
[1741701402739,8.1395,122.88,122.83,8.1426]
[1741701402941,0.06131431,122.87,122.85,0.0583649]
[1741701403744,4.27901431,122.87,122.77,4.2478]
[1741701403946,4.2177,122.87,122.77,4.2478]
[1741701404145,26.43320608,122.85,122.77,4.2478]
[1741701404443,56.66,122.84,122.73,4.0148]
[1741701404646,26.43320608,122.82,122.73,4.0148]
[1741701404947,0.05850695,122.8,122.79,8.1454]
[1741701405142,0.05850695,122.8,122.77,0.05596355]
[1741701405349,0.05793562,122.81,122.77,0.05381334]
[1741701405949,0.05793562,122.81,122.78,8.1457]
[1741701406150,0.05793562,122.81,122.77,0.05381334]
[1741701406550,0.05793562,122.81,122.78,8.1457]
[1741701406850,0.05793562,122.81,122.77,0.05381334]
[1741701407046,0.05793562,122.81,122.79,8.1453]
[1741701407247,0.05793562,122.81,122.77,4.15611334]
[1741701408250,0.05793562,122.81,122.8,8.1447]
[1741701408752,4.1998,122.87,122.77,4.15611334]
[1741701409153,56.64,122.88,122.79,26.43320608]
[1741701409454,3.9771,122.93,122.82,26.43320608]
[1741701409857,0.06210526,122.89,122.86,0.0519427]
[1741701410252,0.06210526,122.89,122.88,8.1394]
[1741701410455,0.06210526,122.89,122.86,0.0519427]
[1741701413357,8.1404,122.87,122.82,8.143]
[1741701413948,26.43320608,122.89,122.77,3.9896]
[1741701414148,26.43320608,122.86,122.77,3.9896]
[1741701414557,0.05227878,122.83,122.8,0.05806404]
[1741701415657,8.19537878,122.83,122.8,0.05806404]
[1741701415861,0.05227878,122.83,122.8,0.05806404]
[1741701416358,26.43320608,122.82,122.74,3.9896]
[1741701416762,26.43320608,122.82,122.77,8.1466]
[1741701416961,34.57700608,122.82,122.77,8.1466]
[1741701417158,26.43320608,122.82,122.76,8.147]
[1741701417355,303.21480608,122.85,122.74,3.9896]
[1741701417559,0.05438479,122.8,122.78,0.05401281]
[1741701417760,0.05438479,122.8,122.79,8.1454]
[1741701418064,0.05524109,122.81,122.78,0.05401281]
[1741701419964,0.05524109,122.81,122.8,8.1447]
[1741701420262,48.93860415,122.9,122.8,56.56]
[1741701420465,44.64550415,122.9,122.81,4.381]
[1741701421262,82.97320608,122.89,122.79,4.1211]
[1741701421563,0.05963846,122.87,122.84,8.19498468]
[1741701421956,26.43320608,122.86,122.78,191.0]
[1741701422155,26.43320608,122.83,122.72,3.9819]
[1741701422359,26.43320608,122.8,122.72,3.9819]
[1741701422558,56.54,122.82,122.78,8.1458]
[1741701422755,64.6838,122.82,122.72,3.9819]
[1741701423060,56.54,122.82,122.72,3.9819]
[1741701423366,0.05397651,122.78,122.76,0.05855741]
[1741701423958,4.1824,122.85,122.76,0.05855741]
[1741701424158,4.1824,122.85,122.76,8.1469]
[1741701424363,8.1441,122.81,122.74,56.52]
[1741701424558,26.43320608,122.84,122.74,56.52]
[1741701424758,26.43320608,122.84,122.76,8.1468]
[1741701424959,4.1824,122.85,122.74,56.52]
[1741701425158,0.05450051,122.81,122.79,0.05190093]
[1741701425965,8.19890051,122.81,122.72,3.9819]
[1741701426155,56.52,122.81,122.72,3.9819]
[1741701426365,56.52,122.81,122.73,8.1493]
[1741701426659,8.1458,122.79,122.72,3.9819]
[1741701426966,8.1475,122.76,122.7,191.0]
[1741701427167,0.0540055,122.77,122.67,4.1644]
[1741701427363,8.1332,122.78,122.69,8.1517]
[1741701427562,26.43320608,122.77,122.69,8.1517]
[1741701427757,56.52,122.76,122.67,4.1644]
[1741701427962,8.1481,122.75,122.69,8.1517]
[1741701428162,8.1481,122.75,122.67,4.1644]
[1741701428465,0.05992127,122.73,122.71,0.05404878]
[1741701429867,0.05992127,122.73,122.66,4.2455]
[1741701430063,8.20962127,122.73,122.67,8.1534]
[1741701430368,0.05992127,122.73,122.66,4.2455]
[1741701430959,0.05992127,122.73,122.68,0.05524836]
[1741701431671,8.1503,122.72,122.68,0.05524836]
[1741701432168,0.05992127,122.73,122.68,0.05524836]
[1741701433262,0.05992127,122.73,122.68,82.98845444]
[1741701433463,60.8308,122.82,122.77,8.1467]
[1741701433655,133.18995864,122.83,122.74,26.43320608]
[1741701433857,133.18995864,122.83,122.74,82.93320608]
[1741701434059,133.18995864,122.83,122.7,273.93320608]
[1741701434369,82.93320608,122.82,122.71,4.2389]
[1741701434670,0.05607977,122.78,122.75,0.05359334]
[1741701436471,8.1471,122.77,122.75,0.05359334]
[1741701436671,0.05607977,122.78,122.75,0.05359334]
[1741701437064,8.1474,122.76,122.75,0.05359334]
[1741701437365,0.05607977,122.78,122.75,0.05359334]
[1741701437573,4.03667977,122.78,122.67,60.8349]
[1741701437763,26.43320608,122.76,122.68,8.1524]
[1741701437973,8.1498,122.73,122.67,4.3349]
[1741701438164,26.43320608,122.76,122.67,4.3349]
[1741701438568,26.48576033,122.73,122.7,0.0566337]
[1741701438873,56.48,122.72,122.61,12.9056]
[1741701439269,82.91320608,122.72,122.61,12.9056]
[1741701439571,3.9806,122.71,122.61,12.9056]
[1741701439771,3.9806,122.71,122.63,26.43320608]
[1741701439973,0.06084302,122.68,122.65,0.05905088]
[1741701441062,56.48,122.67,122.59,191.0]
[1741701441268,26.43320608,122.66,122.58,8.4912]
[1741701441462,56.48,122.67,122.58,8.4912]
[1741701442074,329.3006,122.71,122.6,26.43320608]
[1741701442374,60.4606,122.71,122.67,8.1533]
[1741701442673,3.9806,122.71,122.67,8.1533]
[1741701442974,0.05808332,122.7,122.68,0.06139418]
[1741701443164,0.05808332,122.7,122.59,56.46]
[1741701443370,30.41380608,122.71,122.59,56.46]
[1741701443575,30.41380608,122.71,122.67,8.1528]
[1741701443770,3.9806,122.71,122.59,56.46]
[1741701444472,0.0530103,122.66,122.64,0.05155921]
[1741701444674,3.9806,122.71,122.65,8.1547]
[1741701444871,0.05965725,122.66,122.59,56.46]
[1741701445178,0.05613357,122.64,122.58,225.92440608]
[1741701445379,0.05613357,122.64,122.58,199.4912]
[1741701446164,0.05613357,122.64,122.6,0.05857065]
[1741701446365,0.05613357,122.64,122.63,8.156]
[1741701446577,0.05613357,122.64,122.6,0.05857065]
[1741701446967,0.05613357,122.64,122.63,8.156]
[1741701447172,0.05613357,122.64,122.6,0.05857065]
[1741701447672,0.05613357,122.64,122.61,8.1572]
[1741701447872,0.05613357,122.64,122.6,0.05857065]
[1741701448075,0.05613357,122.64,122.61,8.1573]
[1741701448374,0.05613357,122.64,122.6,0.05857065]
[1741701448780,0.05613357,122.64,122.63,8.156]
[1741701449974,0.05613357,122.64,122.6,0.05857065]
[1741701450373,0.05613357,122.64,122.6,8.21637065]
[1741701450977,8.1564,122.63,122.6,0.05857065]
[1741701451274,0.05613357,122.64,122.6,0.05857065]
[1741701452079,8.1562,122.63,122.6,0.05857065]
[1741701452277,0.05613357,122.64,122.6,0.05857065]
[1741701453686,8.1561,122.63,122.6,0.05857065]
[1741701454485,0.05613357,122.64,122.6,0.05857065]
[1741701454877,8.21213357,122.64,122.6,0.05857065]
[1741701455074,0.05613357,122.64,122.6,0.05857065]
[1741701455481,8.1563,122.63,122.6,0.05857065]
[1741701455677,0.05613357,122.64,122.6,0.05857065]
[1741701456085,82.87320608,122.63,122.51,191.0]
[1741701456283,82.87320608,122.63,122.55,8.1608]
[1741701456690,56.44,122.63,122.51,191.0]
[1741701456882,56.44,122.63,122.5,82.87320608]
[1741701457084,8.1587,122.59,122.5,82.87320608]
[1741701457282,0.05645197,122.58,122.55,0.05271929]
[1741701457680,0.05645197,122.58,122.53,8.1623]
[1741701457989,0.05645197,122.58,122.55,0.05271929]
[1741701458990,0.05645197,122.58,122.55,8.21381929]
[1741701459190,0.05645197,122.58,122.55,0.05271929]
[1741701459392,56.47645197,122.58,122.42,269.12]
[1741701459588,8.1603,122.57,122.51,8.1636]
[1741701459785,26.43320608,122.57,122.47,4.1744]
[1741701460280,56.42,122.58,122.47,4.1744]
[1741701460689,8.21950691,122.54,122.47,12.3409]
[1741701460991,0.05710691,122.54,122.47,4.1744]
[1741701461190,8.1631,122.53,122.47,4.1744]
[1741701461488,64.6031,122.53,122.47,4.1744]
[1741701461691,0.05917985,122.51,122.46,8.1673]
[1741701462279,0.05917985,122.51,122.37,247.42]
[1741701462484,16.57778601,122.5,122.38,29.07218601]
[1741701462686,0.06173365,122.45,122.38,29.07218601]
[1741701463283,285.75778601,122.55,122.41,16.57778601]
[1741701463489,16.57778601,122.52,122.42,72.99778601]
[1741701463688,16.57778601,122.52,122.42,56.42]
[1741701463992,16.57778601,122.52,122.39,16.57778601]
[1741701464185,16.57778601,122.52,122.39,72.99778601]
[1741701464386,26.96331084,122.53,122.41,26.96331084]
[1741701464684,0.05816419,122.47,122.44,0.05700975]
[1741701464889,26.96331084,122.53,122.41,26.96331084]
[1741701465091,269.18,122.55,122.43,26.96331084]
[1741701465287,60.9046,122.57,122.47,26.96331084]
[1741701465592,60.6957,122.57,122.48,8.1193]
[1741701466093,56.42,122.57,122.48,8.1193]
[1741701466284,11.22820818,122.58,122.5,26.96331084]
[1741701466490,0.06107349,122.54,122.51,0.06244094]
[1741701469194,0.06107349,122.54,122.52,8.163]
[1741701469394,0.06107349,122.54,122.51,0.06244094]
[1741701472593,0.06107349,122.54,122.53,8.1627]
[1741701474295,325.68,122.62,122.51,0.06244094]
[1741701474599,325.68,122.62,122.5,4.1168]
[1741701474794,325.68,122.62,122.52,26.96331084]
[1741701474999,269.3,122.62,122.58,8.159]
[1741701475394,269.3,122.62,122.57,8.1596]
[1741701475697,0.0581011,122.61,122.59,0.05200373]
[1741701475895,0.0581011,122.61,122.52,83.34331084]
[1741701476100,0.05670623,122.61,122.59,0.0553032]
[1741701476399,8.1591,122.59,122.52,56.38]
[1741701476595,8.1591,122.59,122.54,8.1615]
[1741701476897,269.3,122.62,122.54,0.05168117]
[1741701477099,0.05403234,122.58,122.56,8.1603]
[1741701477498,0.05403234,122.58,122.55,0.0611808]